bitfinex/quotes_ETHUSD_20250131
["timestamp","ask_amount","ask_price","bid_price","bid_amount"]
[1738302066070,0.15065957,3241.6,3241.3,0.55]
[1738302066309,0.15065957,3241.6,3241.5,3.63499]
[1738302066521,3.84117,3242.5,3241.7,3.63472]
[1738302066676,3.84117,3242.5,3241.9,0.55]
[1738302066877,0.15070772,3242.4,3241.9,0.55]
[1738302067072,0.62305045,3242.3,3241.9,0.55]
[1738302067280,0.77375817,3242.3,3241.9,0.55]
[1738302068014,0.15070772,3242.3,3241.9,0.55]
[1738302068204,3.08407,3242.5,3242.2,0.7591]
[1738302068384,3.08407,3242.5,3242.3,0.55]
[1738302069301,3.88267,3242.5,3241.9,1.3198]
[1738302070525,3.08428,3242.3,3241.9,0.55]
[1738302070689,3.08458,3242.0,3241.8,4.39508019]
[1738302071431,3.08458,3242.0,3241.9,0.55]
[1738302072397,0.6215695,3242.6,3242.0,0.8133]
[1738302072539,3.7055595,3242.6,3242.1,0.55]
[1738302072754,3.08415,3242.4,3242.1,0.55]
[1738302073048,3.08423,3242.3,3242.1,0.55]
[1738302073404,0.15131155,3242.2,3242.1,0.55]
[1738302073607,3.08423,3242.3,3242.1,0.55]
[1738302073806,0.15131155,3242.2,3242.1,0.55]
[1738302074043,6.16816,3242.5,3242.1,0.55]
[1738302074218,0.15131155,3242.2,3242.1,0.55]
[1738302074414,3.08413,3242.4,3242.1,0.55]
[1738302074741,0.15131155,3242.2,3242.1,0.55]
[1738302075618,3.08424,3242.3,3242.1,0.55]
[1738302075823,3.23565779,3242.2,3242.1,0.55]
[1738302077977,0.15133779,3242.2,3242.1,0.55]
[1738302078467,3.23565779,3242.2,3242.1,0.55]
[1738302078976,3.23565779,3242.2,3241.8,0.55]
[1738302080930,3.08461,3241.9,3241.8,0.55]
[1738302081329,3.23598715,3241.9,3241.8,0.55]
[1738302081771,0.15137715,3241.9,3241.8,0.55]
[1738302084836,0.15137715,3241.9,3241.6,0.55]
[1738302087974,3.08473,3241.8,3241.6,0.55]
[1738302088171,3.08473,3241.8,3241.5,0.55]
[1738302088474,0.15137715,3241.7,3241.5,0.55]
[1738302088671,3.08473,3241.8,3241.5,0.55]
[1738302088878,0.15137715,3241.6,3241.5,0.55]
[1738302089079,3.08473,3241.8,3241.5,0.55]
[1738302089382,0.15137715,3241.6,3241.5,0.55]
[1738302089980,3.08499,3241.5,3241.3,4.39508019]
[1738302090181,3.08508,3241.4,3241.3,4.39508019]
[1738302090340,3.23642215,3241.4,3241.3,4.94508019]
[1738302093192,4.06812386,3241.4,3241.3,4.94508019]
[1738302093393,4.84543051,3241.4,3241.3,4.94508019]
[1738302093696,4.84543051,3241.4,3241.3,0.55]
[1738302093898,4.8145288,3241.4,3241.3,0.55]
[1738302100075,4.84543051,3241.4,3241.3,0.55]
[1738302100366,1.76035051,3241.4,3240.7,0.7611]
[1738302100580,3.08558,3240.9,3240.5,4.39508019]
[1738302101102,0.15077776,3240.8,3240.6,0.55]
[1738302101304,3.11648171,3240.9,3240.6,0.55]
[1738302101601,3.11648171,3240.9,3239.8,4.39508019]
[1738302101602,0.15071649,3240.7,3239.8,4.39508019]
[1738302101768,3.0867,3239.7,3239.6,2.443]
[1738302101966,4.15167,3239.7,3239.6,2.443]
[1738302102184,3.99351513,3239.7,3239.6,2.443]
[1738302102371,3.23721513,3239.7,3239.6,2.443]
[1738302102566,3.26811684,3239.7,3239.6,2.443]
[1738302102796,3.23721513,3239.7,3239.6,2.443]
[1738302105096,0.15051513,3239.7,3239.6,2.993]
[1738302105397,3.08659,3239.9,3239.7,0.55]
[1738302106508,3.69579844,3240.1,3239.7,0.55]
[1738302106809,0.8099,3240.7,3239.9,0.55]
[1738302106975,3.08595,3240.5,3239.9,8.03159019]
[1738302107309,3.08595,3240.5,3240.1,0.55]
[1738302107466,3.08568,3240.8,3240.3,0.55]
[1738302108398,3.08577,3240.7,3240.3,0.55]
[1738302110820,3.08603,3240.4,3239.9,5.20018019]
[1738302111018,3.08629,3240.2,3239.9,4.39508019]
[1738302111176,0.03090171,3240.1,3239.9,4.39508019]
[1738302111376,3.11723171,3240.1,3240.0,0.55]
[1738302111889,3.11723171,3240.1,3239.8,0.55]
[1738302112093,3.08629,3240.2,3239.8,0.55]
[1738302117305,0.03090171,3240.1,3239.8,0.55]
[1738302117508,3.08629,3240.2,3239.8,0.55]
[1738302120939,0.14983657,3240.1,3239.8,0.55]
[1738302123706,0.14983657,3240.1,3240.0,0.55]
[1738302123907,0.61142163,3240.5,3240.0,3.63641]
[1738302124137,3.85433,3240.7,3240.3,0.7752]
[1738302124138,3.08583,3240.7,3240.3,0.7752]
[1738302124349,3.08566,3240.8,3240.4,0.55]
[1738302124755,3.08553,3241.0,3240.4,3.63596]
[1738302124910,3.08529,3241.2,3240.8,0.8014]
[1738302125109,3.08529,3241.2,3240.9,0.55]
[1738302126321,3.71677601,3241.2,3240.9,0.55]
[1738302126913,0.03090171,3241.1,3240.9,0.55]
[1738302128259,3.11631171,3241.1,3240.9,0.55]
[1738302129329,3.08546,3241.0,3240.9,0.55]
[1738302133124,0.66238772,3241.2,3240.9,0.55]
[1738302133125,3.71682601,3241.2,3240.9,0.55]
[1738302133328,0.14988912,3241.0,3240.9,0.55]
[1738302133539,3.71682601,3241.2,3240.9,0.55]
[1738302134074,0.14988912,3241.1,3240.9,0.55]
[1738302134277,0.18079083,3241.1,3240.9,0.55]
[1738302134574,0.14988912,3241.1,3240.9,0.55]
[1738302137326,3.08514,3241.4,3240.9,0.55]
[1738302137845,0.14507945,3241.3,3240.9,0.55]
[1738302139322,0.14507945,3241.3,3240.9,0.99679035]
[1738302139567,3.08502,3241.5,3241.0,0.7748]
[1738302139767,0.14527201,3241.2,3241.0,0.7748]
[1738302140067,0.14527201,3241.1,3241.0,1.3248]
[1738302140430,3.08508,3241.4,3241.0,1.3248]
[1738302140651,0.14527201,3241.3,3241.0,1.3248]
[1738302140853,3.23046201,3241.3,3241.0,1.3248]
[1738302143228,3.08539,3241.1,3240.9,4.39508019]
[1738302143427,0.14529389,3241.0,3240.9,4.39508019]
[1738302143639,3.23075389,3241.0,3240.9,4.39508019]
[1738302144749,3.23075389,3241.0,3240.9,4.94508019]
[1738302145543,0.14529389,3241.0,3240.9,4.94508019]
[1738302145791,3.08521,3241.3,3241.0,1.3103]
[1738302146644,3.08529,3241.2,3241.0,1.3103]
[1738302148301,0.14516699,3241.1,3241.0,1.3103]
[1738302148898,3.08514,3241.4,3241.0,1.3103]
[1738302149108,0.14516699,3241.1,3241.0,1.3103]
[1738302149403,3.08514,3241.4,3241.0,1.3103]
[1738302149563,0.14516699,3241.1,3241.0,1.3103]
[1738302149904,0.14523699,3241.1,3241.0,1.3103]
[1738302150066,3.08503,3241.5,3241.0,1.3103]
[1738302150265,0.14523699,3241.1,3241.0,1.3103]
[1738302150461,3.08503,3241.5,3241.0,1.3103]
[1738302150666,0.14523699,3241.1,3241.0,1.3103]
[1738302150866,3.08503,3241.5,3241.0,1.3103]
[1738302151102,0.14527202,3241.1,3241.0,1.3103]
[1738302151312,3.08503,3241.5,3241.0,1.3103]
[1738302151515,0.14527202,3241.1,3241.0,1.3103]
[1738302151700,3.08503,3241.5,3241.0,1.75296537]
[1738302151915,0.14527202,3241.1,3241.0,1.75296537]
[1738302152116,3.08503,3241.5,3241.0,1.75296537]
[1738302152342,0.14528952,3241.1,3241.0,4.39576]
[1738302152534,3.83475,3242.0,3241.3,3.08509]
[1738302152691,3.08455,3242.0,3241.5,0.7961]
[1738302152890,0.14528952,3241.9,3241.5,0.7961]
[1738302153192,0.14528952,3241.9,3241.6,0.55]
[1738302153383,0.14528952,3241.9,3241.6,1.74419867]
[1738302153587,3.08442,3242.1,3241.6,4.82907867]
[1738302154142,0.14567024,3242.0,3241.6,4.82907867]
[1738302155631,0.14567024,3242.0,3241.7,0.7783]
[1738302155831,0.14567024,3242.0,3241.8,0.55]
[1738302156035,3.08426,3242.3,3241.8,0.55]
[1738302156547,0.14581024,3242.2,3241.8,0.55]
[1738302157009,3.08426,3242.3,3241.8,0.55]
[1738302157507,0.14581024,3242.2,3241.8,0.55]
[1738302158000,3.08426,3242.3,3241.8,0.55]
[1738302158206,0.14581024,3242.1,3241.8,0.55]
[1738302158387,3.08426,3242.3,3241.8,1.1138144]
[1738302158936,0.14585398,3242.2,3241.8,1.1138144]
[1738302159352,0.03090171,3242.2,3241.8,0.55]
[1738302159542,3.23034398,3242.1,3241.8,0.55]
[1738302159751,3.98414398,3242.1,3241.8,0.55]
[1738302160543,3.23034398,3242.1,3241.8,0.55]
[1738302164162,3.08461,3241.9,3241.8,0.55]
[1738302164465,3.8712,3241.8,3241.7,4.39508019]
[1738302164640,3.8712,3241.8,3241.7,4.94508019]
[1738302165050,3.8712,3241.8,3241.7,0.55]
[1738302165213,3.23071148,3241.8,3241.7,0.55]
[1738302173733,0.14601148,3241.8,3241.7,0.55]
[1738302175290,3.11525171,3242.2,3241.8,0.55]
[1738302175606,0.14597649,3241.8,3241.7,0.55]
[1738302175809,3.11525171,3242.2,3241.7,0.55]
[1738302175980,0.14591524,3241.8,3241.7,0.55]
[1738302176301,0.14589336,3241.8,3241.7,0.55]
[1738302176705,3.08449,3242.1,3241.7,0.55]
[1738302177283,0.14589336,3242.0,3241.7,0.55]
[1738302179407,3.70613402,3242.2,3241.7,0.55]
[1738302179603,0.14589336,3241.9,3241.7,0.55]
[1738302179804,3.70613402,3242.2,3241.7,0.55]
[1738302179967,0.14589336,3241.8,3241.7,0.55]
[1738302180168,3.70613402,3242.2,3241.7,0.55]
[1738302180408,0.14589336,3241.8,3241.7,0.55]
[1738302180614,3.70613402,3242.2,3241.7,0.55]
[1738302180812,0.14589336,3241.8,3241.7,0.55]
[1738302181001,3.70613402,3242.2,3241.7,0.55]
[1738302181315,3.0845,3242.1,3241.7,0.55]
[1738302181527,3.23044151,3242.1,3241.7,0.55]
[1738302182027,3.08452,3242.0,3241.7,0.55]
[1738302182226,3.08481,3241.7,3241.5,0.55]
[1738302182412,0.03090171,3241.6,3241.5,0.55]
[1738302182815,0.14600711,3241.6,3241.2,0.55]
[1738302183199,0.17690882,3241.6,3241.2,0.55]
[1738302184078,0.14600711,3241.6,3241.2,0.55]
[1738302184628,0.14600711,3241.6,3241.2,3.63527]
[1738302184984,6.20018171,3241.9,3241.2,3.63527]
[1738302185295,3.08473,3241.8,3241.2,3.63527]
[1738302185483,0.14600711,3241.8,3241.2,3.63527]
[1738302185984,3.23074711,3241.8,3241.2,3.63527]
[1738302186731,3.08474,3241.8,3241.2,3.63527]
[1738302187232,3.08474,3241.8,3241.2,0.55]
[1738302188333,3.08474,3241.8,3241.2,3.63526]
[1738302188977,0.14600711,3241.7,3241.2,3.63526]
[1738302189085,3.08482,3241.7,3241.2,0.55]
[1738302189940,0.03090171,3241.6,3241.2,0.55]
[1738302192129,3.08515,3241.4,3241.2,0.55]
[1738302192336,0.03090171,3241.3,3240.8,5.15478019]
[1738302192687,0.17683445,3241.3,3240.9,0.55]
[1738302192893,0.03090171,3241.3,3240.9,0.55]
[1738302193396,0.14580586,3241.2,3240.9,0.55]
[1738302195326,0.14580586,3241.1,3240.9,0.55]
[1738302195745,0.03090171,3241.3,3240.9,0.55]
[1738302195946,0.14580586,3241.0,3240.9,0.55]
[1738302196528,3.11616171,3241.3,3240.9,0.55]
[1738302196730,0.14580586,3241.0,3240.9,0.55]
[1738302197042,0.03090171,3241.1,3240.9,0.55]
[1738302197251,0.14580586,3241.0,3240.9,0.55]
[1738302198651,3.08526,3241.3,3240.9,0.55]
[1738302198849,0.14580586,3241.0,3240.9,0.55]
[1738302199049,3.08526,3241.3,3240.9,0.55]
[1738302199250,0.14580586,3241.0,3240.9,0.55]
[1738302199411,0.03090171,3241.2,3240.7,0.55]
[1738302199611,0.1456746,3241.0,3240.7,0.55]
[1738302199835,3.11623171,3241.2,3240.7,0.55]
[1738302200150,3.08533,3241.2,3240.7,0.55]
[1738302200355,0.1456746,3241.1,3240.7,0.55]
[1738302202152,0.03090171,3241.2,3240.7,0.55]
[1738302202316,3.11620171,3241.2,3240.7,0.55]
[1738302202815,0.1456746,3241.1,3240.7,0.55]
[1738302204149,0.1456746,3241.1,3241.0,0.7691]
[1738302204339,4.45345215,3241.5,3241.1,0.55]
[1738302204515,3.83900322,3241.4,3241.1,0.55]
[1738302206456,3.11608171,3241.3,3240.9,0.55]
[1738302207152,0.61052215,3241.5,3240.9,3.63553]
[1738302208451,0.14552146,3241.4,3240.9,3.63553]
[1738302209411,0.14552146,3241.4,3240.9,8.03061019]
[1738302211243,0.14552146,3241.4,3241.2,0.8019]
[1738302211446,0.14552146,3241.4,3241.3,0.55]
[1738302211660,0.61522322,3241.7,3241.3,0.55]
[1738302211973,0.14560896,3241.4,3241.3,0.55]
[1738302212149,3.89286,3241.6,3241.0,1.3468]
[1738302212469,0.14560896,3241.4,3241.0,1.3468]
[1738302212664,3.085,3241.5,3241.0,1.3468]
[1738302212865,0.14560896,3241.3,3241.0,1.3468]
[1738302213174,3.085,3241.5,3241.0,1.3468]
[1738302213372,3.08509,3241.4,3241.0,1.3468]
[1738302213576,3.23069896,3241.4,3241.0,1.3468]
[1738302215373,3.23069896,3241.4,3241.0,0.55]
[1738302215678,3.08509,3241.4,3240.9,0.55]
[1738302215975,3.08518,3241.3,3240.9,0.55]
[1738302216161,3.23083713,3241.3,3240.9,0.55]
[1738302216858,0.14565713,3241.3,3240.9,0.55]
[1738302218376,3.23084713,3241.3,3240.9,0.55]
[1738302219078,3.87488,3241.1,3240.9,0.55]
[1738302219441,0.14562648,3241.0,3240.9,0.55]
[1738302221369,0.14562648,3241.0,3240.7,0.55]
[1738302222964,3.08563,3240.9,3240.7,0.55]
[1738302223336,3.23112958,3240.9,3240.7,0.55]
[1738302227521,3.23112958,3240.9,3240.5,0.55]
[1738302228176,3.11662171,3240.8,3240.5,0.55]
[1738302228372,3.2311058,3240.8,3240.5,0.55]
[1738302229274,0.1453858,3240.8,3240.5,0.55]
[1738302229572,3.08553,3241.0,3240.5,0.55]
[1738302229777,0.14528951,3240.7,3240.5,0.55]
[1738302230091,3.8749,3241.1,3240.5,4.51801002]
[1738302230306,0.14524136,3240.6,3240.5,3.63585]
[1738302230489,3.8749,3241.1,3240.5,3.63585]
[1738302230689,0.14509694,3240.6,3240.5,3.63585]
[1738302230888,3.8749,3241.1,3240.5,3.63585]
[1738302231089,0.14509694,3240.6,3240.5,3.63585]
[1738302231289,3.8749,3241.1,3240.5,3.63585]
[1738302231577,3.0854,3241.1,3240.5,3.63585]
[1738302231978,0.14509694,3241.0,3240.5,3.63585]
[1738302232678,0.14509694,3241.0,3240.5,3.08585]
[1738302232873,0.14509694,3241.0,3240.6,1.3539]
[1738302236606,3.23056694,3241.0,3240.6,1.3539]
[1738302236947,0.14509694,3241.0,3240.8,0.55]
[1738302237234,3.08501,3241.5,3240.8,3.63565]
[1738302237434,3.08501,3241.5,3240.8,4.94508019]
[1738302237634,3.08516,3241.4,3240.8,4.94508019]
[1738302237808,3.08516,3241.4,3240.8,8.03073019]
[1738302238108,3.23034011,3241.4,3240.8,8.03073019]
[1738302240140,0.14518011,3241.4,3241.0,0.55]
[1738302240301,0.14518011,3241.4,3241.0,3.63546]
[1738302240803,3.085,3241.5,3241.0,3.63546]
[1738302241011,0.14526326,3241.3,3241.0,0.55]
[1738302241392,0.14526326,3241.2,3241.0,0.55]
[1738302241618,3.0853,3241.2,3241.0,0.55]
[1738302241825,3.08548,3241.0,3240.8,4.39508019]
[1738302242030,0.7679,3241.0,3240.8,4.39508019]
[1738302242323,3.08577,3240.7,3240.0,3.90053]
[1738302242524,3.08585,3240.6,3240.0,9.73382821]
[1738302242725,3.08577,3240.7,3240.0,6.64749821]
[1738302242911,3.2312914,3240.5,3240.0,6.64749821]
[1738302243127,3.08598,3240.5,3240.0,6.64749821]
[1738302243449,0.9219114,3240.4,3240.0,5.20928019]
[1738302243606,0.9219114,3240.4,3240.1,0.55]
[1738302243944,0.1453114,3240.4,3240.1,0.55]
[1738302244438,3.08577,3240.7,3240.1,0.55]
[1738302244747,0.14514072,3240.3,3240.1,0.55]
[1738302244913,3.08577,3240.7,3240.1,0.55]
[1738302245112,0.14514072,3240.2,3240.1,0.55]
[1738302245435,3.08577,3240.7,3240.1,0.55]
[1738302245630,0.14497876,3240.2,3240.1,0.55]
[1738302245796,3.08587,3240.6,3240.1,0.55]
[1738302245797,3.08587,3240.6,3240.3,0.55]
[1738302246442,3.394457,3240.6,3240.1,0.55]
[1738302246994,3.08587,3240.6,3240.1,0.55]
[1738302250433,3.08567,3240.8,3240.3,0.55]
[1738302250636,3.08529,3241.2,3240.7,0.55]
[1738302252016,3.08545,3241.1,3240.5,4.39508019]
[1738302252317,3.702544,3241.0,3240.6,0.55]
[1738302253435,0.14493936,3240.9,3240.6,0.55]
[1738302255342,3.08529,3241.2,3240.6,0.55]
[1738302255343,3.08548,3241.0,3240.6,0.55]
[1738302255549,0.14493936,3240.8,3240.6,0.55]
[1738302255754,3.08548,3241.0,3240.6,0.55]
[1738302255934,0.14493936,3240.7,3240.6,0.55]
[1738302256427,3.11638171,3241.0,3240.6,0.55]
[1738302256756,0.14493936,3240.7,3240.6,0.55]
[1738302256932,0.7855,3240.9,3240.6,0.55]
[1738302257141,0.14507506,3240.7,3240.6,0.55]
[1738302257363,0.7855,3240.9,3240.6,0.55]
[1738302257524,0.14507506,3240.7,3240.6,0.55]
[1738302257888,0.14506631,3240.7,3240.6,0.55]
[1738302258232,0.7855,3240.9,3240.6,0.55]
[1738302258438,0.14506631,3240.7,3240.6,0.55]
[1738302258631,0.7855,3240.9,3240.6,0.55]
[1738302258829,0.1450488,3240.7,3240.6,0.55]
[1738302259037,3.08548,3241.0,3240.6,0.55]
[1738302259236,0.1450488,3240.7,3240.6,0.55]
[1738302259464,3.08548,3241.0,3240.6,0.55]
[1738302259663,0.1450488,3240.7,3240.6,0.55]
[1738302259843,3.08559,3240.9,3240.6,0.55]
[1738302260050,0.1450488,3240.7,3240.6,0.55]
[1738302260245,3.08559,3240.9,3240.6,0.55]
[1738302260451,0.1450488,3240.7,3240.6,0.55]
[1738302260636,3.84864,3241.1,3240.6,0.55]
[1738302260832,0.1450488,3240.7,3240.6,0.55]
[1738302261041,3.84864,3241.1,3240.6,0.55]
[1738302261238,0.1450488,3240.7,3240.6,0.55]
[1738302261484,3.84864,3241.1,3240.6,0.55]
[1738302261793,0.1450488,3240.7,3240.6,0.55]
[1738302262071,3.84864,3241.1,3240.6,0.55]
[1738302262072,0.1450488,3241.0,3240.6,0.55]
[1738302262272,3.84864,3241.1,3240.6,0.55]
[1738302262441,0.1450488,3240.9,3240.6,0.55]
[1738302262640,4.60381075,3241.1,3240.6,0.55]
[1738302262859,0.1450488,3240.8,3240.6,0.55]
[1738302263036,0.7632,3241.1,3240.6,0.55]
[1738302263242,0.1450488,3240.7,3240.6,1.3508]
[1738302263571,0.7632,3241.1,3240.6,1.3508]
[1738302263871,0.1450488,3240.7,3240.6,4.43664]
[1738302264031,3.0851,3241.4,3240.8,0.55]
[1738302264261,3.0851,3241.4,3240.8,8.03064019]
[1738302266082,3.70295751,3241.3,3240.8,4.94508019]
[1738302266806,3.08529,3241.2,3240.8,4.94508019]
[1738302267300,3.08554,3241.0,3240.8,4.94508019]
[1738302268002,3.11644171,3241.0,3240.8,4.94508019]
[1738302268354,3.89675,3241.1,3240.8,4.94508019]
[1738302268904,0.14509694,3241.0,3240.6,0.55]
[1738302271976,3.23055694,3241.0,3240.6,0.49812584]
[1738302272283,3.98031721,3241.0,3240.6,0.49812584]
[1738302273605,3.08563,3240.9,3240.6,0.49812584]
[1738302274169,0.14509694,3240.8,3240.6,0.49812584]
[1738302274808,3.83522027,3241.0,3240.6,0.49812584]
[1738302274985,0.14509694,3240.7,3240.6,0.49812584]
[1738302275389,3.08546,3241.0,3240.6,0.49812584]
[1738302275602,3.82069458,3241.0,3240.4,0.55]
[1738302275811,0.14509694,3240.9,3240.4,0.55]
[1738302280024,3.23066694,3240.9,3240.4,0.55]
[1738302280407,3.08557,3240.9,3240.4,0.55]
[1738302280595,0.1450838,3240.8,3240.4,0.55]
[1738302281429,0.1450838,3240.8,3240.4,3.63596]
[1738302281718,3.89675,3241.1,3240.4,3.63596]
[1738302281933,0.1450838,3240.7,3240.4,3.63596]
[1738302282223,3.08547,3241.0,3240.4,3.63596]
[1738302282902,0.1450838,3240.9,3240.4,3.08596]
[1738302283924,0.1450838,3240.9,3240.5,0.55]
[1738302289331,0.1450838,3240.9,3240.4,0.55]
[1738302289515,3.08547,3241.0,3240.4,0.55]
[1738302289685,0.42670658,3241.0,3240.4,0.55]
[1738302289889,3.0856,3240.9,3240.4,0.55]
[1738302290091,3.2306838,3240.9,3240.4,0.55]
[1738302290290,0.1450838,3240.9,3240.4,0.55]
[1738302290491,3.89673,3241.1,3240.4,3.66683763]
[1738302290713,0.1450838,3240.8,3240.4,3.66683763]
[1738302290918,3.89673,3241.1,3240.4,3.66683731]
[1738302291106,0.1450838,3240.7,3240.6,0.55]
[1738302291317,3.89673,3241.1,3240.6,0.55]
[1738302291815,0.14512758,3241.0,3240.6,0.55]
[1738302292634,0.14512758,3241.0,3240.7,0.55]
[1738302293590,0.14512758,3241.0,3240.9,0.55]
[1738302293804,0.8048,3241.7,3241.0,0.7989]
[1738302294128,0.62586393,3241.5,3241.1,3.63533]
[1738302295334,0.62586393,3241.5,3241.1,0.55]
[1738302296091,3.71087393,3241.5,3241.1,0.55]
[1738302298440,0.14528517,3241.4,3241.1,0.55]
[1738302298739,0.14528517,3241.4,3241.1,4.94508019]
[1738302303109,0.14528517,3241.4,3241.2,0.55]
[1738302303912,3.08493,3241.6,3241.2,0.55]
[1738302304132,0.14570088,3241.3,3241.2,0.55]
[1738302304614,3.08493,3241.6,3241.2,0.55]
[1738302304821,0.14570088,3241.3,3241.2,0.55]
[1738302305023,3.08493,3241.6,3241.2,0.55]
[1738302305629,3.08527,3241.2,3241.1,4.39508019]
[1738302305836,3.86017,3241.2,3241.1,4.39508019]
[1738302306128,4.03677697,3241.2,3241.1,4.39508019]
[1738302306333,4.00587526,3241.2,3241.1,4.39508019]
[1738302310585,3.08572,3240.8,3240.2,0.55]
[1738302311272,0.14538143,3240.7,3240.2,0.55]
[1738302311843,0.17628314,3240.7,3240.2,0.55]
[1738302312175,4.03099314,3240.7,3240.2,0.55]
[1738302312474,0.14538143,3240.6,3240.2,0.55]
[1738302312951,0.14538143,3240.6,3240.1,8.25819019]
[1738302313624,3.08615,3240.3,3240.0,4.39508019]
[1738302313774,3.08633,3240.1,3239.7,5.18808019]
[1738302313975,3.85505,3240.3,3239.7,8.27477019]
[1738302314176,0.7689,3240.3,3239.8,3.63658]
[1738302314423,0.14517574,3240.2,3239.8,3.63658]
[1738302314719,0.7689,3240.3,3239.8,3.08658]
[1738302314872,0.7689,3240.3,3239.9,0.55]
[1738302315067,0.14505755,3240.2,3239.9,0.55]
[1738302315272,0.7689,3240.3,3239.9,0.55]
[1738302315488,0.14505755,3240.1,3239.9,0.55]
[1738302315692,3.8551,3240.3,3239.8,0.55]
[1738302315972,0.14505755,3240.2,3239.8,0.55]
[1738302316170,3.0864,3240.1,3239.7,4.39508019]
[1738302316413,0.17595926,3240.2,3239.5,3.2582]
[1738302316414,3.0865,3240.0,3239.5,3.2582]
[1738302316612,3.23131676,3240.0,3239.5,0.8152]
[1738302316917,0.7519,3239.9,3239.4,7.48206019]
[1738302317211,0.7519,3239.9,3239.5,0.55]
[1738302317367,3.8385,3239.9,3239.5,0.55]
[1738302317572,0.7519,3239.9,3239.5,0.55]
[1738302317884,0.14470294,3239.8,3239.5,0.55]
[1738302318928,3.63271341,3239.8,3239.4,4.39508019]
[1738302319129,3.63271341,3239.8,3239.2,7.48222019]
[1738302321319,3.63271341,3239.8,3239.3,0.55]
[1738302321516,0.14470294,3239.8,3239.5,3.08683]
[1738302321717,0.8006,3240.2,3239.7,3.0867]
[1738302322387,0.8241,3240.4,3239.8,0.55]
[1738302322587,0.8241,3240.4,3239.9,3.0865]
[1738302322803,1.823696,3240.4,3239.9,3.0865]
[1738302323117,4.909726,3240.4,3239.9,3.0865]
[1738302323420,3.08614,3240.3,3239.8,0.55]
[1738302323744,3.11704171,3240.3,3239.8,0.55]
[1738302324903,3.08626,3240.2,3239.8,0.55]
[1738302325249,3.95168762,3240.2,3239.8,0.55]
[1738302328345,0.14435702,3240.1,3239.8,0.55]
[1738302331149,3.08643,3240.0,3239.8,0.55]
[1738302331704,0.14435702,3239.9,3239.8,0.55]
[1738302334230,0.14435702,3239.9,3239.6,0.55]
[1738302337289,0.14435702,3239.9,3239.5,4.39508019]
[1738302338121,0.14435702,3239.9,3239.6,0.55]
[1738302339404,0.7891,3240.0,3239.6,0.55]
[1738302339602,0.1392452,3239.8,3239.6,0.55]
[1738302339908,0.1392452,3239.7,3239.6,0.55]
[1738302340058,0.7891,3240.0,3239.6,4.94508019]
[1738302340259,0.1392452,3239.7,3239.6,4.94508019]
[1738302340501,3.87553,3240.0,3239.6,5.82965621]
[1738302340791,0.1392452,3239.9,3239.6,4.39508019]
[1738302341094,0.1392452,3239.9,3239.7,0.55]
[1738302341963,3.08669,3239.8,3239.6,4.39508019]
[1738302342160,3.0867,3239.7,3239.6,4.39508019]
[1738302342360,3.22597584,3239.7,3239.6,4.39508019]
[1738302342814,0.13927584,3239.7,3239.6,4.39508019]
[1738302343144,3.08669,3239.8,3239.6,4.39508019]
[1738302343263,0.1392408,3239.7,3239.4,0.55]
[1738302343463,3.08669,3239.8,3239.4,0.55]
[1738302343664,0.1392408,3239.6,3239.4,0.55]
[1738302343864,3.08669,3239.8,3239.4,0.55]
[1738302344064,0.13921015,3239.5,3239.4,0.55]
[1738302344265,3.08669,3239.8,3239.4,1.43224702]
[1738302344469,0.13921015,3239.5,3239.4,0.55]
[1738302344802,3.08669,3239.8,3239.4,0.55]
[1738302344968,0.13921015,3239.5,3239.4,0.55]
[1738302345168,3.08669,3239.8,3239.4,0.55]
[1738302345369,0.13921015,3239.5,3239.4,0.55]
[1738302345614,3.08669,3239.8,3239.4,1.43224702]
[1738302345808,0.13921015,3239.5,3239.4,1.43224702]
[1738302346267,3.08669,3239.8,3239.4,1.43224702]
[1738302346606,0.13921015,3239.5,3239.4,1.43224702]
[1738302346779,3.08669,3239.8,3239.4,1.43224702]
[1738302346990,0.13921015,3239.5,3239.4,1.43224702]
[1738302347188,3.08669,3239.8,3239.4,1.43224702]
[1738302347392,0.13921015,3239.5,3239.4,0.55]
[1738302347620,3.08669,3239.8,3239.4,0.55]
[1738302347791,0.13921015,3239.5,3239.4,0.55]
[1738302347994,3.08669,3239.8,3239.4,0.55]
[1738302348491,0.13921015,3239.7,3239.4,0.55]
[1738302348819,3.08669,3239.8,3239.4,0.93485955]
[1738302349015,0.13921015,3239.6,3239.4,0.93485955]
[1738302349319,0.13921015,3239.5,3239.4,0.93485955]
[1738302349617,3.08669,3239.8,3239.4,0.93485955]
[1738302349821,0.13921015,3239.5,3239.4,0.55]
[1738302350020,3.08669,3239.8,3239.4,0.55]
[1738302350200,0.13921015,3239.5,3239.4,0.55]
[1738302350406,3.11759171,3239.8,3239.4,0.55]
[1738302350570,0.13921015,3239.5,3239.4,0.55]
[1738302350771,3.11759171,3239.8,3239.4,0.55]
[1738302350974,0.13921015,3239.5,3239.4,0.55]
[1738302351211,3.11759171,3239.8,3239.4,0.55]
[1738302351519,0.7798,3239.6,3239.4,0.55]
[1738302352107,0.13921015,3239.5,3239.4,0.55]
[1738302353196,4.47374075,3239.9,3239.4,0.55]
[1738302353404,0.13921015,3239.5,3239.4,0.55]
[1738302353608,3.08662,3239.8,3239.4,0.55]
[1738302353809,0.13907875,3239.5,3239.4,0.55]
[1738302354309,3.08662,3239.8,3239.4,0.55]
[1738302354520,0.13907875,3239.5,3239.4,0.55]
[1738302354716,3.08662,3239.8,3239.4,0.55]